fUSD/lending_fUSD_20260622
["ID","MTS","AMOUNT","RATE_DAILY","PERIOD"]
[425985212,1782071447000,-156.64994,0.0001985,2]
[425985210,1782071447000,-315.0,0.00017571,2]
[425985207,1782071447000,-2500.0,0.000147,2]
[425985208,1782071447000,-314.0,0.00017571,2]
[425985205,1782071447000,-343.4,0.00011959,2]
[425985206,1782071447000,-343.4,0.00012191,2]
[425985219,1782071447000,-150.0,0.000204,7]
[425985203,1782071447000,-141.57166364,0.00011495,2]
[425985202,1782071447000,-172.99479077,0.00010877,2]
[425985201,1782071447000,-54.20660129,0.00011495,2]
[425985209,1782071447000,-151.0,0.00017571,2]
[425985204,1782071447000,-343.4,0.00011727,2]
[425985217,1782071447000,-165.08045469,0.00020378,2]
[425985222,1782071447000,-165.08045469,0.00020433,2]
[425985220,1782071447000,-930.0,0.000204,2]
[425985235,1782071447000,-5300.37745187,0.00020542,2]
[425985232,1782071447000,-154.79978731,0.00020488,2]
[425985233,1782071447000,-10.28066755,0.00020488,2]
[425985230,1782071447000,-2157.14243826,0.00020486,2]
[425985229,1782071447000,-217.15233878,0.00020486,2]
[425985231,1782071447000,-151.0,0.00020486,2]
[425985234,1782071447000,-2298.96133245,0.00020542,2]
[425985226,1782071447000,-181.08010149,0.00020486,2]
[425985227,1782071447000,-286.15596075,0.00020486,2]
[425985221,1782071447000,-576.0,0.000204,2]
[425985218,1782071447000,-202.9,0.00020381,2]
[425985225,1782071447000,-217.15233878,0.00020486,2]
[425985223,1782071447000,-238.86484122,0.00020486,2]
[425985224,1782071447000,-157.03199323,0.00020486,2]
[425985228,1782071447000,-537.53506812,0.00020486,2]
[425985236,1782071487000,10000.0,0.00030137,120]
[425985237,1782071667000,-316.42,0.0001099,2]
[425985238,1782071713000,-314.89,0.00010441,2]
[425985239,1782071758000,-314.89,0.00010267,2]
[425985240,1782071761000,315.91,9.753e-05,2]
[425985241,1782071811000,-315.91,0.00010267,2]
[425985245,1782071865000,-315.91,0.0001078,2]
[425985246,1782071918000,-189.07949596,0.00010707,2]
[425985247,1782071972000,-151.0,0.00010711,2]
[425985248,1782072025000,-150.0,0.00010711,2]
[425985250,1782072078000,-152.0,0.00010711,2]
[425985251,1782072115000,150.0,0.00030136,120]
[425985252,1782072132000,-151.0,0.00010711,2]
[425985259,1782072285000,-151.0,0.0001071,2]
[425985260,1782072338000,-152.0,0.0001071,2]
[425985261,1782072391000,-500.0,0.00010709,2]
[425985262,1782072445000,-500.0,0.00010708,2]
[425985276,1782072498000,-499.62449783,0.00010708,2]
[425985277,1782072505000,-151.0,0.00010708,2]
[425985279,1782072505000,-150.0,0.00010708,2]
[425985278,1782072505000,-150.0,0.00010708,2]
[425985280,1782072505000,-150.0,0.00010708,2]
[425985283,1782072505000,-251.98916816,0.00010709,2]
[425985281,1782072505000,-500.0,0.00010709,2]
[425985282,1782072505000,-500.0,0.00010709,2]
[425985284,1782072505000,-206.29275833,0.00010709,2]
[425985286,1782072505000,-152.0,0.00010709,2]
[425985285,1782072505000,-150.0,0.00010709,2]
[425985287,1782072505000,-150.0,0.00010709,2]
[425985289,1782072505000,-151.0,0.0001071,2]
[425985296,1782072505000,-150.0,0.0001071,2]
[425985290,1782072505000,-80.33705268,0.0001071,2]
[425985291,1782072505000,-69.66294732,0.0001071,2]
[425985292,1782072505000,-151.0,0.0001071,2]
[425985294,1782072505000,-151.0,0.0001071,2]
[425985293,1782072505000,-152.0,0.0001071,2]
[425985295,1782072505000,-153.0,0.0001071,2]
[425985297,1782072505000,-150.0,0.0001071,2]
[425985288,1782072505000,-151.0,0.0001071,2]
[425985298,1782072505000,-151.0,0.0001071,2]
[425985300,1782072505000,-1000.0,0.0001071,2]
[425985299,1782072505000,-150.0,0.0001071,2]
[425985301,1782072505000,-615.95603185,0.0001071,2]
[425985304,1782072530000,-384.04396815,0.0001071,2]
[425985303,1782072530000,-153.0,0.00010709,2]
[425985302,1782072530000,-153.0,0.00010708,2]
[425985305,1782072530000,-1000.0,0.0001071,2]
[425985308,1782072530000,-680.68022981,0.0001071,2]
[425985307,1782072530000,-319.31977019,0.0001071,2]
[425985311,1782072530000,-304.04557748,0.0001071,2]
[425985309,1782072530000,-1000.0,0.0001071,2]
[425985310,1782072530000,-1000.0,0.0001071,2]
[425985306,1782072530000,-1000.0,0.0001071,2]
[425985312,1782072551000,-150.0,0.00010708,2]
[425985313,1782072555000,-150.0,0.00010709,2]
[425985315,1782072555000,-1000.0,0.0001071,2]
[425985314,1782072555000,-695.95442252,0.0001071,2]
[425985318,1782072555000,-716.70889327,0.0001071,2]
[425985316,1782072555000,-1000.0,0.0001071,2]
[425985317,1782072555000,-283.29110673,0.0001071,2]
[425985319,1782072555000,-1000.0,0.0001071,2]
[425985321,1782072555000,-412.53663598,0.0001071,2]
[425985320,1782072555000,-1000.0,0.0001071,2]
[425985322,1782072582000,-587.46336402,0.0001071,2]
[425985324,1782072582000,-1000.0,0.0001071,2]
[425985325,1782072582000,-666.9519864,0.0001071,2]
[425985323,1782072582000,-1000.0,0.0001071,2]
[425985331,1782072582000,-689.20243398,0.0001071,2]
[425985326,1782072582000,-333.0480136,0.0001071,2]
[425985328,1782072582000,-1000.0,0.0001071,2]
[425985329,1782072582000,-921.36733682,0.0001071,2]
[425985330,1782072582000,-78.63266318,0.0001071,2]
[425985327,1782072582000,-1000.0,0.0001071,2]
[425985332,1782072605000,-310.79756602,0.0001071,2]
[425985334,1782072607000,-1000.0,0.0001071,2]
[425985333,1782072607000,-1000.0,0.0001071,2]
[425985335,1782072607000,-1000.0,0.0001071,2]
[425985336,1782072607000,-399.94866638,0.0001071,2]
[425985339,1782072607000,-1000.0,0.0001071,2]
[425985338,1782072607000,-1000.0,0.0001071,2]
[425985337,1782072607000,-600.05133362,0.0001071,2]
[425985340,1782072607000,-106.20538179,0.0001071,2]
[425985355,1782072631000,-608.57968406,0.0001071,2]
[425985360,1782072631000,-106.66506585,0.0001071,2]
[425985358,1782072631000,-285.21493415,0.0001071,2]
[425985363,1782072631000,-153.0,0.0001071,2]
[425985361,1782072631000,-43.33493415,0.0001071,2]
[425985364,1782072631000,-152.0,0.0001071,2]
[425985367,1782072631000,-150.0,0.00010711,2]
[425985365,1782072631000,-151.0,0.00010711,2]
[425985362,1782072631000,-150.0,0.0001071,2]
[425985370,1782072631000,-153.0,0.00010711,2]
[425985372,1782072631000,-150.0,0.00010711,2]
[425985368,1782072631000,-152.0,0.00010711,2]
[425985366,1782072631000,-150.0,0.00010711,2]
[425985371,1782072631000,-153.0,0.00010711,2]
[425985374,1782072631000,-151.0,0.00010711,2]
[425985373,1782072631000,-151.0,0.00010711,2]
[425985369,1782072631000,-151.0,0.00010711,2]
[425985375,1782072631000,-153.0,0.00010711,2]
[425985432,1782072632000,-2401.52,0.00011067,2]
[425985430,1782072632000,-1323.39108753,0.00011029,2]
[425985421,1782072632000,-1444.12,0.00010995,2]
[425985427,1782072632000,-529.02891247,0.00011029,2]
[425985423,1782072632000,-11399.95899926,0.00011011,2]
[425985434,1782072632000,-197.72,0.00011085,2]
[425985425,1782072632000,-150.0,0.00011022,2]
[425985437,1782072632000,-171.24,0.00011085,2]
[425985455,1782072632000,-166.66,0.00011274,2]
[425985445,1782072632000,-150.0,0.0001113,2]
[425985447,1782072632000,-314.89,0.00011173,2]
[425985439,1782072632000,-203.95,0.00011115,2]
[425985441,1782072632000,-1593.62,0.00011116,2]
[425985449,1782072632000,-316.42,0.00011183,2]
[425985451,1782072632000,-150.0,0.00011238,2]
[425985453,1782072632000,-256.05,0.0001126,2]
[425985458,1782072632000,-200.0,0.00011305,2]
[425985419,1782072632000,-150.0,0.0001099,2]
[425985443,1782072632000,-166.66,0.00011116,2]
[425985417,1782072632000,-152.0,0.0001099,2]
[425985394,1782072632000,-300.0,0.00010931,2]
[425985413,1782072632000,-150.0,0.0001099,2]
[425985379,1782072632000,-152.0,0.0001078,2]
[425985376,1782072632000,-151.0,0.00010711,2]
[425985378,1782072632000,-152.0,0.00010723,2]
[425985381,1782072632000,-151.0,0.0001078,2]
[425985377,1782072632000,-160.0,0.0001072,2]
[425985382,1782072632000,-153.0,0.0001078,2]
[425985384,1782072632000,-151.0,0.0001078,2]
[425985385,1782072632000,-314.89,0.00010807,2]
[425985389,1782072632000,-150.0,0.00010914,2]
[425985388,1782072632000,-314.89,0.00010807,2]
[425985392,1782072632000,-6171.46940177,0.00010931,2]
[425985399,1782072632000,-217.68536206,0.00010956,2]
[425985397,1782072632000,-665.97059823,0.00010931,2]
[425985401,1782072632000,-924.43,0.00010956,2]
[425985405,1782072632000,-150.0,0.00010959,2]
[425985403,1782072632000,-166.66,0.00010959,2]
[425985411,1782072632000,-151.0,0.0001099,2]
[425985407,1782072632000,-150.0,0.00010959,2]
[425985409,1782072632000,-150.0,0.0001099,2]
[425985415,1782072632000,-150.0,0.0001099,2]
[425985460,1782072632000,-3094.23,0.00011315,2]
[425985479,1782072632000,-152.0,0.00011569,2]
[425985464,1782072632000,-314.89,0.00011347,2]
[425985491,1782072632000,-187.32,0.00012329,2]
[425985494,1782072632000,-303.60423859,0.00012947,2]
[425985492,1782072632000,-256.05,0.00012386,2]
[425985490,1782072632000,-256.05,0.00012105,2]
[425985493,1782072632000,-203.95,0.00012504,2]
[425985496,1782072632000,-820.01474309,0.00013,5]
[425985497,1782072632000,-5255.09093076,0.00013,5]
[425985495,1782072632000,-3386.30528315,0.00013,5]
[425985498,1782072632000,-53.84056801,0.00013,5]
[425985499,1782072632000,-303.60423859,0.0001346,2]
[425985502,1782072632000,-4017.45351895,0.00013699,2]
[425985501,1782072632000,-1159.10648105,0.00013699,2]
[425985503,1782072632000,-1954.25393105,0.00013699,2]
[425985504,1782072632000,-3045.73606895,0.00013699,2]
[425985505,1782072632000,-2025.21718205,0.00013699,2]
[425985507,1782072632000,-194.13386839,0.00013699,2]
[425985506,1782072632000,-1117.69894956,0.00013699,2]
[425985508,1782072632000,-477.95613161,0.00013699,2]
[425985462,1782072632000,-150.0,0.00011346,2]
[425985488,1782072632000,-256.05,0.00011823,2]
[425985486,1782072632000,-166.66,0.00011747,2]
[425985500,1782072632000,-151.0,0.00013611,2]
[425985484,1782072632000,-151.0,0.00011609,2]
[425985466,1782072632000,-2594.43,0.00011356,2]
[425985489,1782072632000,-216.32317309,0.00012007,2]
[425985467,1782072632000,-3881.41961527,0.00011367,2]
[425985468,1782072632000,-316.42,0.00011376,2]
[425985470,1782072632000,-213.0,0.00011454,2]
[425985469,1782072632000,-166.66,0.00011432,2]
[425985473,1782072632000,-314.89,0.0001154,2]
[425985472,1782072632000,-327.17872588,0.00011472,2]
[425985475,1782072632000,-150.0,0.00011568,2]
[425985471,1782072632000,-349.2356,0.00011468,2]
[425985478,1782072632000,-152.0,0.00011569,2]
[425985477,1782072632000,-316.42,0.00011569,2]
[425985476,1782072632000,-150.0,0.00011569,2]
[425985480,1782072632000,-151.0,0.00011571,2]
[425985483,1782072632000,-166.66,0.00011589,2]
[425985481,1782072632000,-151.0,0.00011579,2]
[425985482,1782072632000,-1090.18918161,0.00011588,2]
[425985474,1782072632000,-256.05,0.00011542,2]
[425985485,1782072632000,-150.0,0.00011729,2]
[425985487,1782072632000,-316.42,0.00011761,2]
[425985540,1782072638000,-500.0,0.00014999,2]
[425985548,1782072638000,-500.0,0.00014999,2]
[425985549,1782072638000,-500.0,0.00014999,2]
[425985545,1782072638000,-500.0,0.00014999,2]
[425985547,1782072638000,-500.0,0.00014999,2]
[425985542,1782072638000,-500.0,0.00014999,2]
[425985546,1782072638000,-500.0,0.00014999,2]
[425985543,1782072638000,-500.0,0.00014999,2]
[425985551,1782072638000,-224.48,0.00015,2]
[425985544,1782072638000,-500.0,0.00014999,2]
[425985550,1782072638000,-3382970.10547592,0.00015,2]
[425985564,1782072638000,-166.632024,0.00016109,2]
[425985552,1782072638000,-321053.27906403,0.00015,2]
[425985555,1782072638000,-155.79042001,0.00015169,2]
[425985554,1782072638000,-232.88,0.00015068,2]
[425985557,1782072638000,-725.28802125,0.00015169,2]
[425985556,1782072638000,-411.13338325,0.00015169,2]
[425985559,1782072638000,-1541.0,0.00015318,5]
[425985558,1782072638000,-203.95,0.00015282,2]
[425985561,1782072638000,-500.0,0.00015945,2]
[425985563,1782072638000,-313.0,0.00016073,2]
[425985562,1782072638000,-1613.0535,0.00016054,2]
[425985541,1782072638000,-500.0,0.00014999,2]
[425985553,1782072638000,-303.60423859,0.00015,2]
[425985537,1782072638000,-500.0,0.00014999,2]
[425985517,1782072638000,-303.60423859,0.00013973,2]
[425985538,1782072638000,-500.0,0.00014999,2]
[425985560,1782072638000,-1555.5,0.00015506,2]
[425985514,1782072638000,-151.0,0.0001071,2]
[425985515,1782072638000,-9522.03386839,0.00013699,2]
[425985516,1782072638000,-203.95,0.00013893,2]
[425985520,1782072638000,-753.45074309,0.000149,2]
[425985518,1782072638000,-303.60423859,0.00014487,2]
[425985519,1782072638000,-500.0,0.00014489,2]
[425985522,1782072638000,-2500.0,0.000149,2]
[425985521,1782072638000,-528.34200376,0.000149,2]
[425985525,1782072638000,-2372.8409081,0.000149,2]
[425985524,1782072638000,-1403.18443994,0.000149,2]
[425985523,1782072638000,-13426.76394438,0.000149,2]
[425985527,1782072638000,-179.38920481,0.000149,2]
[425985531,1782072638000,-190.53862374,0.0001499,2]
[425985526,1782072638000,-177.49822206,0.000149,2]
[425985528,1782072638000,-291.99293023,0.00014908,2]
[425985530,1782072638000,-13858.0713622,0.00014989,2]
[425985529,1782072638000,-1500.0,0.00014958,2]
[425985533,1782072638000,-500.0,0.00014999,2]
[425985532,1782072638000,-190.53862374,0.0001499,2]
[425985534,1782072638000,-500.0,0.00014999,2]
[425985536,1782072638000,-500.0,0.00014999,2]
[425985535,1782072638000,-500.0,0.00014999,2]
[425985539,1782072638000,-500.0,0.00014999,2]
[425985566,1782072638000,-13426.76394438,0.00016209,2]
[425985605,1782072638000,-500.0,0.00016438,2]
[425985565,1782072638000,-3695.37,0.00016116,2]
[425985595,1782072638000,-500.0,0.00016438,2]
[425985597,1782072638000,-500.0,0.00016438,2]
[425985596,1782072638000,-500.0,0.00016438,2]
[425985598,1782072638000,-500.0,0.00016438,2]
[425985599,1782072638000,-500.0,0.00016438,2]
[425985600,1782072638000,-500.0,0.00016438,2]
[425985602,1782072638000,-500.0,0.00016438,2]
[425985601,1782072638000,-500.0,0.00016438,2]
[425985603,1782072638000,-500.0,0.00016438,2]
[425985615,1782072638000,-500.0,0.00016438,2]
[425985604,1782072638000,-500.0,0.00016438,2]
[425985608,1782072638000,-500.0,0.00016438,2]
[425985607,1782072638000,-500.0,0.00016438,2]
[425985609,1782072638000,-500.0,0.00016438,2]
[425985611,1782072638000,-500.0,0.00016438,2]
[425985610,1782072638000,-500.0,0.00016438,2]
[425985612,1782072638000,-630.44238949,0.00016438,2]
[425985614,1782072638000,-500.0,0.00016438,2]
[425985613,1782072638000,-500.0,0.00016438,2]
[425985617,1782072638000,-500.0,0.00016438,2]
[425985618,1782072638000,-500.0,0.00016438,2]
[425985616,1782072638000,-500.0,0.00016438,2]
[425985567,1782072638000,-177.1,0.00016438,2]
[425985594,1782072638000,-500.0,0.00016438,2]
[425985593,1782072638000,-500.0,0.00016438,2]
[425985606,1782072638000,-500.0,0.00016438,2]
[425985590,1782072638000,-500.0,0.00016438,2]
[425985592,1782072638000,-500.0,0.00016438,2]
[425985568,1782072638000,-689.77000024,0.00016438,2]
[425985569,1782072638000,-500.0,0.00016438,2]
[425985570,1782072638000,-500.0,0.00016438,2]
[425985574,1782072638000,-500.0,0.00016438,2]
[425985573,1782072638000,-500.0,0.00016438,2]
[425985572,1782072638000,-500.0,0.00016438,2]
[425985575,1782072638000,-500.0,0.00016438,2]
[425985576,1782072638000,-500.0,0.00016438,2]
[425985578,1782072638000,-500.0,0.00016438,2]
[425985577,1782072638000,-500.0,0.00016438,2]
[425985579,1782072638000,-500.0,0.00016438,2]
[425985571,1782072638000,-500.0,0.00016438,2]
[425985581,1782072638000,-500.0,0.00016438,2]
[425985588,1782072638000,-500.0,0.00016438,2]
[425985589,1782072638000,-500.0,0.00016438,2]
[425985587,1782072638000,-500.0,0.00016438,2]
[425985586,1782072638000,-500.0,0.00016438,2]
[425985584,1782072638000,-500.0,0.00016438,2]
[425985591,1782072638000,-500.0,0.00016438,2]
[425985583,1782072638000,-500.0,0.00016438,2]
[425985582,1782072638000,-500.0,0.00016438,2]
[425985580,1782072638000,-500.0,0.00016438,2]
[425985585,1782072638000,-500.0,0.00016438,2]
[425985659,1782072639000,-154.26333622,0.0001824,2]
[425985647,1782072639000,-503.64491147,0.00016438,2]
[425985649,1782072639000,-171.24,0.00016628,2]
[425985653,1782072639000,-1734.62772924,0.0001715,2]
[425985651,1782072639000,-1403.18443993,0.00016828,2]
[425985652,1782072639000,-2373.162,0.00017105,2]
[425985650,1782072639000,-203.95,0.00016672,2]
[425985654,1782072639000,-13426.76394438,0.00017518,2]
[425985655,1782072639000,-320.0,0.0001757,2]
[425985657,1782072639000,-200.0,0.0001805,2]
[425985656,1782072639000,-1798.80895522,0.00017698,2]
[425985658,1782072639000,-224.48,0.000181,2]
[425985672,1782072639000,-1231.662,0.00019363,2]
[425985663,1782072639000,-1927.0,0.00018432,5]
[425985664,1782072639000,-1403.18443993,0.00018755,2]
[425985661,1782072639000,-1865.36488656,0.00018246,2]
[425985665,1782072639000,-1811.96355993,0.00018794,2]
[425985662,1782072639000,-177.1,0.0001841,2]
[425985666,1782072639000,-13426.76394438,0.00018826,2]
[425985667,1782072639000,-1084.98750316,0.00019169,2]
[425985668,1782072639000,-3560.0,0.00019363,2]
[425985669,1782072639000,-1276.0,0.00019363,2]
[425985671,1782072639000,-383.0,0.00019363,2]
[425985673,1782072639000,-6081.0,0.00019363,2]
[425985648,1782072639000,-1672.7364795,0.00016602,2]
[425985660,1782072639000,-154.96600771,0.0001824,2]
[425985645,1782072639000,-500.0,0.00016438,2]
[425985619,1782072639000,-500.0,0.00016438,2]
[425985646,1782072639000,-500.0,0.00016438,2]
[425985620,1782072639000,-500.0,0.00016438,2]
[425985670,1782072639000,-1360.0,0.00019363,2]
[425985622,1782072639000,-500.0,0.00016438,2]
[425985623,1782072639000,-500.0,0.00016438,2]
[425985621,1782072639000,-500.0,0.00016438,2]
[425985625,1782072639000,-500.0,0.00016438,2]
[425985624,1782072639000,-500.0,0.00016438,2]
[425985628,1782072639000,-500.0,0.00016438,2]
[425985629,1782072639000,-500.0,0.00016438,2]
[425985626,1782072639000,-500.0,0.00016438,2]
[425985627,1782072639000,-500.0,0.00016438,2]
[425985630,1782072639000,-500.0,0.00016438,2]
[425985632,1782072639000,-500.0,0.00016438,2]
[425985631,1782072639000,-500.0,0.00016438,2]
[425985633,1782072639000,-500.0,0.00016438,2]
[425985634,1782072639000,-500.0,0.00016438,2]
[425985636,1782072639000,-500.0,0.00016438,2]
[425985635,1782072639000,-500.0,0.00016438,2]
[425985637,1782072639000,-500.0,0.00016438,2]
[425985638,1782072639000,-500.0,0.00016438,2]
[425985641,1782072639000,-500.0,0.00016438,2]
[425985639,1782072639000,-500.0,0.00016438,2]
[425985640,1782072639000,-500.0,0.00016438,2]
[425985643,1782072639000,-500.0,0.00016438,2]
[425985642,1782072639000,-500.0,0.00016438,2]
[425985644,1782072639000,-500.0,0.00016438,2]
[425985675,1782072639000,-379.4282861,0.00019369,2]
[425985674,1782072639000,-3647.0,0.00019363,2]
[425985678,1782072639000,-150.0,0.00019598,2]
[425985706,1782072639000,-151.0,0.0001989,2]
[425985710,1782072639000,-151.0,0.0001989,2]
[425985707,1782072639000,-151.0,0.0001989,2]
[425985711,1782072639000,-151.0,0.0001989,2]
[425985708,1782072639000,-151.0,0.0001989,2]
[425985712,1782072639000,-151.0,0.0001989,2]
[425985713,1782072639000,-151.0,0.0001989,2]
[425985714,1782072639000,-151.0,0.0001989,2]
[425985715,1782072639000,-151.0,0.0001989,2]
[425985716,1782072639000,-151.0,0.0001989,2]
[425985717,1782072639000,-151.0,0.0001989,2]
[425985720,1782072639000,-151.0,0.0001989,2]
[425985709,1782072639000,-151.0,0.0001989,2]
[425985718,1782072639000,-151.0,0.0001989,2]
[425985722,1782072639000,-151.0,0.0001989,2]
[425985724,1782072639000,-200.0,0.00019972,2]
[425985723,1782072639000,-151.0,0.0001989,2]
[425985726,1782072639000,-184.0,0.0002,2]
[425985727,1782072639000,-155.0,0.0002,2]
[425985728,1782072639000,-347.0,0.0002,2]
[425985729,1782072639000,-685.0,0.0002,2]
[425985730,1782072639000,-406.0,0.0002,2]
[425985732,1782072639000,-543.0,0.0002,2]
[425985731,1782072639000,-157.0,0.0002,2]
[425985733,1782072639000,-187.0,0.0002,2]
[425985676,1782072639000,-249.089,0.00019598,2]
[425985721,1782072639000,-151.0,0.0001989,2]
[425985704,1782072639000,-151.0,0.0001989,2]
[425985719,1782072639000,-151.0,0.0001989,2]
[425985702,1782072639000,-151.0,0.0001989,2]
[425985680,1782072639000,-151.0,0.00019598,2]
[425985705,1782072639000,-151.0,0.0001989,2]
[425985677,1782072639000,-168.31,0.00019598,2]
[425985679,1782072639000,-150.166,0.00019598,2]
[425985682,1782072639000,-214.9784,0.00019889,2]
[425985681,1782072639000,-214.9784,0.00019889,2]
[425985683,1782072639000,-214.9784,0.00019889,2]
[425985685,1782072639000,-209.40437684,0.0001989,2]
[425985686,1782072639000,-157.03199323,0.0001989,2]
[425985688,1782072639000,-151.0,0.0001989,2]
[425985687,1782072639000,-151.0,0.0001989,2]
[425985690,1782072639000,-151.0,0.0001989,2]
[425985692,1782072639000,-174.61919141,0.0001989,2]
[425985684,1782072639000,-214.9783571,0.0001989,2]
[425985700,1782072639000,-721.12765534,0.0001989,2]
[425985703,1782072639000,-151.0,0.0001989,2]
[425985689,1782072639000,-151.0,0.0001989,2]
[425985701,1782072639000,-483.78156131,0.0001989,2]
[425985698,1782072639000,-209.40437684,0.0001989,2]
[425985697,1782072639000,-151.0,0.0001989,2]
[425985699,1782072639000,-151.0,0.0001989,2]
[425985696,1782072639000,-151.0,0.0001989,2]
[425985695,1782072639000,-151.0,0.0001989,2]
[425985693,1782072639000,-151.0,0.0001989,2]
[425985691,1782072639000,-151.0,0.0001989,2]
[425985694,1782072639000,-578.20924308,0.0001989,2]
[425985773,1782072640000,-194.72792766,0.00021534,2]
[425985775,1782072640000,-151.0,0.00021534,2]
[425985774,1782072640000,-233.5188934,0.00021534,2]
[425985772,1782072640000,-157.03199323,0.00021534,2]
[425985771,1782072640000,-214.9783571,0.00021534,2]
[425985770,1782072640000,-13426.76394438,0.00021444,2]
[425985769,1782072640000,-1468.0215,0.00021169,7]
[425985766,1782072640000,-543.0,0.00021,2]
[425985767,1782072640000,-187.0,0.00021,2]
[425985768,1782072640000,-528.34200375,0.0002115,2]
[425985777,1782072640000,-1385.9,0.00021606,2]
[425985765,1782072640000,-157.0,0.00021,2]
[425985776,1782072640000,-483.78156131,0.00021534,2]
[425985789,1782072640000,-155.0,0.00022,2]
[425985778,1782072640000,-159.11633035,0.000219,2]
[425985779,1782072640000,-5000.0,0.00021918,2]
[425985781,1782072640000,-166.0,0.00021918,2]
[425985784,1782072640000,-200.0,0.00021918,2]
[425985780,1782072640000,-166.0,0.00021918,2]
[425985783,1782072640000,-200.0,0.00021918,2]
[425985786,1782072640000,-343.57900008,0.00022,3]
[425985785,1782072640000,-500.0,0.00021999,2]
[425985787,1782072640000,-450.0,0.00022,2]
[425985788,1782072640000,-184.0,0.00022,2]
[425985790,1782072640000,-347.0,0.00022,2]
[425985791,1782072640000,-685.0,0.00022,2]
[425985763,1782072640000,-685.0,0.00021,2]
[425985782,1782072640000,-166.0,0.00021918,2]
[425985764,1782072640000,-406.0,0.00021,2]
[425985735,1782072640000,-2029.21146247,0.0002,2]
[425985761,1782072640000,-155.0,0.00021,2]
[425985792,1782072640000,-406.0,0.00022,2]
[425985734,1782072640000,-1385.9,0.0002,2]
[425985736,1782072640000,-316.0,0.0002,2]
[425985737,1782072640000,-13426.76394438,0.00020135,2]
[425985738,1782072640000,-479.57266691,0.00020215,2]
[425985739,1782072640000,-200.0,0.00020377,2]
[425985740,1782072640000,-177.1,0.00020381,2]
[425985745,1782072640000,-181.08010149,0.00020438,2]
[425985744,1782072640000,-157.03199323,0.00020438,2]
[425985742,1782072640000,-214.9783571,0.00020438,2]
[425985743,1782072640000,-217.15233878,0.00020438,2]
[425985741,1782072640000,-151.0,0.000204,2]
[425985746,1782072640000,-217.15233878,0.00020438,2]
[425985748,1782072640000,-483.78156131,0.00020438,2]
[425985747,1782072640000,-151.0,0.00020438,2]
[425985749,1782072640000,-260.14002293,0.00020542,2]
[425985750,1782072640000,-150.0,0.000206,7]
[425985752,1782072640000,-224.48,0.000209,2]
[425985757,1782072640000,-225.18697532,0.00020986,2]
[425985754,1782072640000,-261.82032338,0.00020986,2]
[425985753,1782072640000,-214.9783571,0.00020986,2]
[425985751,1782072640000,-1403.18443993,0.00020683,2]
[425985756,1782072640000,-187.78006524,0.00020986,2]
[425985755,1782072640000,-157.03199323,0.00020986,2]
[425985758,1782072640000,-151.0,0.00020986,2]
[425985760,1782072640000,-184.0,0.00021,2]
[425985762,1782072640000,-347.0,0.00021,2]
[425985759,1782072640000,-483.78156131,0.00020986,2]
[425985793,1782072640000,-157.0,0.00022,2]
[425985848,1782072640000,-386.37,0.000232,14]
[425985794,1782072640000,-543.0,0.00022,2]
[425985827,1782072640000,-151.0,0.0002263,2]